[Event "18th Karpov Poikovsky 2017"]
[Site "Poikovsky"]
[Date "2017.04.19"]
[Round "2"]
[White "Zhigalko, Sergei"]
[Black "Sutovsky, Emil"]
[Result "1/2-1/2"]
[ECO "B90"]
[WhiteElo "2639"]
[BlackElo "2650"]
[Annotator "TA"]
[PlyCount "131"]
[EventDate "2017.??.??"]
[EventType "tourn"]
[EventCountry "RUS"]
[SourceTitle "playchess.com"]
[Source "ChessBase"]
[SourceQuality "1"]
[TimeControl "5400+30"]

1. Nf3 {[%emt 0:00:00]} d5 {[%emt 0:00:46]} 2. c4 {[%emt 0:00:00]} c6 {[%emt 0:00:49]} 3. b3 {[%emt 0:00:00]} g6 {[%emt 0:01:22]} 4. Bb2 {[%emt 0:00:08]} Nf6 {[%emt 0:00:23]} 5. d4 {[%emt 0:03:52] A12: English Opening: 1...c6 with b3 by White} (5. g3 Bg7 6. Bg2 O-O 7. O-O a5 8. Nc3 Ne4 9. Na4 Bxb2 10. Nxb2 Na6 11. d3 Nf6 12. cxd5 Nxd5 13. Qd2 Bg4 14. Nc4 Bxf3 15. Bxf3 Nc5 16. d4 {½-½ (72) Anton Guijarro,D (2650)-Vidit,S (2689) Doha 2016}) 5... Bg7 {[%emt 0:00:43]} 6. Nc3 {[%emt 0:00:59]} O-O {[%emt 0:02:44]} 7. g3 {[%emt 0:00:33]} Nbd7 {[%emt 0:01:44]} 8. Bg2 {[%emt 0:00:29]} Nb6 {[%emt 0:09:57]} 9. c5 {[%emt 0:01:38]} Nbd7 {[%emt 0:00:18]} 10. O-O {[%emt 0:00:24]} b6 $146 {[%emt 0:00:51]} (10... Ne4 11. b4 f5 12. e3 {1-0 (43) Vooremaa,A (2350)-Rantanen,P Jyvaskyla 1991}) 11. b4 {[%emt 0:02:26]} Rb8 {[%emt 0:03:19]} 12. Rb1 {[%emt 0:01:12]} Qc7 {[%emt 0:00:50]} 13. Re1 {[%emt 0:08:06]} Rd8 {[%emt 0:06:56]} 14. Qa4 {[%emt 0:07:38]} e5 {[%emt 0:01:59]} 15. Nxe5 {[%emt 0:02:29]} (15. dxe5 $11 Ng4 16. e6 fxe6 17. Rec1) 15... Nxe5 {[%emt 0:01:12]} 16. dxe5 {[%emt 0:00:10]} Nd7 {[%emt 0:05:22]} 17. cxb6 {[%emt 0:13:23]} Nxb6 {[%emt 0:01:12]} 18. Qc2 {[%emt 0:13:05]} Nc4 {[%emt 0:06:40]} 19. e4 $2 {[%emt 0:14:52] [#]} ({Better is} 19. Bc1 $15) 19... d4 $1 {[%emt 0:05:56]} ({Weaker is} 19... Bxe5 20. Bc1 $15 (20. exd5 Rxb4 21. Nd1 Nxb2 22. Nxb2 cxd5 23. Qxc7 Bxc7 $17)) (19... Nxb2 20. Rxb2 Qxe5 21. Rc1 $17) 20. Ne2 {[%emt 0:03:15]} Nxb2 {[%emt 0:03:08]} 21. Qxb2 {[%emt 0:02:34]} c5 {[%emt 0:18:06]} 22. Qd2 {[%emt 0:10:29]} (22. Nf4 $17 {only move.}) 22... d3 {[%emt 0:08:08]} 23. Nc3 {[%emt 0:03:58]} Qxe5 {[%emt 0:00:26]} 24. Nd5 {[%emt 0:00:27]} c4 {[%emt 0:00:39]} 25. Rbc1 {[%emt 0:01:10]} Ba6 {[%emt 0:00:51]} 26. a4 {[%emt 0:00:36]} Rbc8 {[%emt 0:01:24]} 27. Nc3 {[%emt 0:00:57]} Bb7 {[%emt 0:01:15]} 28. Red1 {[%emt 0:01:50]} Qe7 {[%emt 0:08:09]} 29. Rb1 {[%emt 0:02:45]} Re8 {[%emt 0:02:28]} 30. Re1 {[%emt 0:01:09]} Qc7 {[%emt 0:01:51]} 31. Nb5 {[%emt 0:01:06]} Qb6 {[%emt 0:00:33]} 32. Nc3 {[%emt 0:00:23]} Bd4 {[%emt 0:01:20]} 33. a5 {[%emt 0:01:10]} Qf6 {[%emt 0:00:16]} 34. Rbc1 {[%emt 0:00:40]} Qe7 {[%emt 0:01:53]} 35. Nb5 {[%emt 0:00:53]} Bf6 {[%emt 0:00:33]} 36. Nxa7 {[%emt 0:00:48]} Ra8 {[%emt 0:00:15]} 37. Nb5 {[%emt 0:00:04] [#]} Ba6 $1 {[%emt 0:00:12]} 38. e5 {[%emt 0:00:44]} Bg5 {[%emt 0:01:00]} 39. f4 {[%emt 0:00:07]} Bxb5 {[%emt 0:01:24]} 40. Bxa8 {[%emt 0:00:09]} Rxa8 {[%emt 0:00:17]} 41. fxg5 {[%emt 0:00:03]} Re8 {[%emt 0:00:30]} 42. Ra1 {[%emt 0:01:38]} Rc8 {[%emt 0:00:20]} 43. Rac1 {[%emt 0:00:13]} Kg7 $2 {[%emt 0:01:11]} (43... Qa7+ $19 44. Qf2 (44. Kf1 $2 c3 45. Rxc3 Rxc3 46. Qxc3 d2+ 47. Kg2 Bc6+ 48. Kf1 Bb5+ 49. Kg2 dxe1=N+ 50. Qxe1 Bc6+ 51. Kh3 Bd7+ 52. g4 Qd4 $19) 44... Qxf2+ 45. Kxf2 d2) 44. h4 {[%emt 0:00:38]} c3 $2 {[%emt 0:00:18]} (44... Qd7 $11 45. Kh2 Qd4) 45. Rxc3 {[%emt 0:02:20]} Qxb4 {[%emt 0:00:18]} 46. Rec1 $18 {[%emt 0:00:08]} (46. Rxd3 Qc5+ 47. Rde3) 46... Qd4+ {[%emt 0:00:55]} 47. Kh2 {[%emt 0:00:12]} Rxc3 {[%emt 0:00:42]} 48. Rxc3 {[%emt 0:00:03]} Qxe5 {[%emt 0:01:05]} 49. Rb3 {[%emt 0:00:24]} Ba6 {[%emt 0:01:16]} 50. Qb2 {[%emt 0:00:12]} Qxb2+ {[%emt 0:00:03]} 51. Rxb2 {[%emt 0:00:01]} Kf8 {[%emt 0:00:37]} 52. Kg2 {[%emt 0:00:07]} Ke7 {[%emt 0:00:09]} 53. Kf3 {[%emt 0:00:14]} Kd7 {[%emt 0:00:05]} 54. Ke3 {[%emt 0:00:09]} Kc7 {[%emt 0:00:29]} 55. Rb6 {[%emt 0:00:12]} Bc4 {[%emt 0:00:06]} 56. Rf6 {[%emt 0:00:49]} Kb7 {[%emt 0:00:18]} 57. Rf4 {[%emt 0:00:15]} Bb5 {[%emt 0:01:17]} 58. Rxf7+ {[%emt 0:00:32]} Ka6 {[%emt 0:00:02]} 59. Rxh7 {[%emt 0:00:12]} Kxa5 {[%emt 0:00:04]} 60. Rc7 {[%emt 0:00:19]} Kb6 {[%emt 0:00:42]} 61. Rg7 {[%emt 0:00:20]} Kc5 {[%emt 0:01:29]} 62. Rxg6 {[%emt 0:00:13]} Kd5 {[%emt 0:00:11]} 63. Rg8 {[%emt 0:00:27]} Ke5 {[%emt 0:00:33]} 64. h5 {[%emt 0:00:36]} Bc4 {[%emt 0:00:02]} 65. Rg7 {[%emt 0:00:21]} Kf5 {[%emt 0:00:23]} 66. h6 {[%emt 0:00:11] Kf4+} 1/2-1/2